[Event "Titled Tuesday Blitz November 22 Early 2022"]
[White "Kriti Mayur Patel"]
[Black "Van Osch, Mees"]
[WhiteFideId "35061780"]
[BlackFideId "1035967"]
[WhiteElo "1306"]
[BlackElo "2324"]
[Result "0-1"]
[Round "07"]
[TimeControl "180+1"]
[Date "2022.11.23"]
[WhiteClock "0:02:18"]
[BlackClock "0:02:13"]

1. e4 {[%clk 0:03:00]}  c5 {[%clk 0:02:56]} 2. d4 {[%clk 0:03:00]}  cxd4 {[%clk 0:02:54]} 3. c3 {[%clk 0:03:00]}  d5 {[%clk 0:02:54]} 4. exd5 {[%clk 0:03:00]}  Qxd5 {[%clk 0:02:51]} 5. cxd4 {[%clk 0:03:00]}  Nc6 {[%clk 0:02:50]} 6. Nf3 {[%clk 0:02:59]}  Bg4 {[%clk 0:02:50]} 7. Nc3 {[%clk 0:02:59]}  Bxf3 {[%clk 0:02:50]} 8. Nxd5 {[%clk 0:02:58]}  Bxd1 {[%clk 0:02:50]} 9. Nc7+ {[%clk 0:02:58]}  Kd7 {[%clk 0:02:50]} 10. Nxa8 {[%clk 0:02:58]}  Bh5 {[%clk 0:02:50]} 11. Bf4 {[%clk 0:02:55]}  e6 {[%clk 0:02:37]} 12. Nc7 {[%clk 0:02:51]}  Bb4+ {[%clk 0:02:37]} 13. Bd2 {[%clk 0:02:47]}  Bxd2+ {[%clk 0:02:31]} 14. Kxd2 {[%clk 0:02:47]}  Kxc7 {[%clk 0:02:32]} 15. Rc1 {[%clk 0:02:44]}  Ne7 {[%clk 0:02:20]} 16. Bc4 {[%clk 0:02:42]}  Rd8 {[%clk 0:02:14]} 17. Ke3 {[%clk 0:02:38]}  Nf5+ {[%clk 0:02:12]} 18. Kf4 {[%clk 0:02:34]}  Rxd4+ {[%clk 0:02:11]} 19. Kg5 {[%clk 0:02:24]}  h6+ {[%clk 0:02:12]} 20. Kxh5 {[%clk 0:02:18]}  Rh4# {[%clk 0:02:13]} 0-1


[Site "https://www.chess.com"]

[Event "Titled Tuesday Blitz November 22 Early 2022"]
[White "Kvaloy, Aksel Bu"]
[Black "Ronka, Erik"]
[WhiteFideId "1528815"]
[BlackFideId "505080"]
[WhiteElo "2184"]
[BlackElo "2264"]
[Result "1-0"]
[Round "07"]
[TimeControl "180+1"]
[Date "2022.11.23"]
[WhiteClock "0:01:43"]
[BlackClock "0:02:16"]

1. e4 {[%clk 0:03:00]}  c5 {[%clk 0:02:59]} 2. Nf3 {[%clk 0:02:49]}  e6 {[%clk 0:02:59]} 3. d4 {[%clk 0:02:33]}  cxd4 {[%clk 0:03:00]} 4. Nxd4 {[%clk 0:02:33]}  Nf6 {[%clk 0:02:58]} 5. Nc3 {[%clk 0:02:30]}  d6 {[%clk 0:02:58]} 6. g4 {[%clk 0:02:28]}  h6 {[%clk 0:02:58]} 7. h4 {[%clk 0:02:27]}  Nc6 {[%clk 0:02:58]} 8. Rg1 {[%clk 0:02:26]}  d5 {[%clk 0:02:58]} 9. exd5 {[%clk 0:02:25]}  Nxd5 {[%clk 0:02:59]} 10. Nde2 {[%clk 0:02:23]}  Bb4 {[%clk 0:02:55]} 11. Bd2 {[%clk 0:02:17]}  O-O {[%clk 0:02:50]} 12. Nxd5 {[%clk 0:02:15]}  exd5 {[%clk 0:02:49]} 13. Bxb4 {[%clk 0:02:14]}  Nxb4 {[%clk 0:02:50]} 14. Qd2 {[%clk 0:02:13]}  a5 {[%clk 0:02:45]} 15. a3 {[%clk 0:02:12]}  Nc6 {[%clk 0:02:45]} 16. g5 {[%clk 0:02:10]}  h5 {[%clk 0:02:42]} 17. O-O-O {[%clk 0:02:02]}  Be6 {[%clk 0:02:34]} 18. Nf4 {[%clk 0:01:58]}  d4 {[%clk 0:02:27]} 19. Nxh5 {[%clk 0:01:56]}  Qd5 {[%clk 0:02:25]} 20. Nf6+ {[%clk 0:01:44]}  gxf6 {[%clk 0:02:16]} 21. gxf6+ {[%clk 0:01:43]}  Kh7 {[%clk 0:02:16]} 22. Rg7+ {[%clk 0:01:43]} 1-0


[Site "https://www.chess.com"]

[Event "Titled Tuesday Blitz November 22 Early 2022"]
[White "Lakshmi C"]
[Black "Sreyas Payyappat"]
[WhiteFideId "25035347"]
[BlackFideId "46674969"]
[WhiteElo "1865"]
[BlackElo "2083"]
[Result "0-1"]
[Round "07"]
[TimeControl "180+1"]
[Date "2022.11.23"]
[WhiteClock "0:00:02"]
[BlackClock "0:00:45"]

1. e4 {[%clk 0:02:43]}  c6 {[%clk 0:02:58]} 2. Nc3 {[%clk 0:02:42]}  d5 {[%clk 0:02:58]} 3. Nf3 {[%clk 0:02:42]}  dxe4 {[%clk 0:02:56]} 4. Nxe4 {[%clk 0:02:41]}  Nf6 {[%clk 0:02:57]} 5. Ng3 {[%clk 0:02:40]}  Bg4 {[%clk 0:02:56]} 6. Be2 {[%clk 0:02:39]}  e6 {[%clk 0:02:54]} 7. d4 {[%clk 0:02:38]}  Bd6 {[%clk 0:02:54]} 8. O-O {[%clk 0:02:31]}  O-O {[%clk 0:02:53]} 9. Bg5 {[%clk 0:02:26]}  h6 {[%clk 0:02:52]} 10. Be3 {[%clk 0:02:17]}  Nd5 {[%clk 0:02:50]} 11. Ne4 {[%clk 0:02:12]}  Bf5 {[%clk 0:02:47]} 12. Nxd6 {[%clk 0:02:08]}  Qxd6 {[%clk 0:02:48]} 13. Ne5 {[%clk 0:02:03]}  Nd7 {[%clk 0:02:46]} 14. Nc4 {[%clk 0:01:55]}  Qc7 {[%clk 0:02:45]} 15. Bd3 {[%clk 0:01:52]}  Bxd3 {[%clk 0:02:44]} 16. Qxd3 {[%clk 0:01:50]}  Rfe8 {[%clk 0:02:39]} 17. Bd2 {[%clk 0:01:47]}  e5 {[%clk 0:02:38]} 18. dxe5 {[%clk 0:01:46]}  Nxe5 {[%clk 0:02:39]} 19. Nxe5 {[%clk 0:01:45]}  Qxe5 {[%clk 0:02:40]} 20. c3 {[%clk 0:01:27]}  Qe2 {[%clk 0:02:36]} 21. Qc2 {[%clk 0:01:15]}  Nf4 {[%clk 0:02:05]} 22. Rae1 {[%clk 0:00:56]}  Qd3 {[%clk 0:01:59]} 23. Qd1 {[%clk 0:00:26]}  Rxe1 {[%clk 0:01:52]} 24. Qxe1 {[%clk 0:00:26]}  Ne2+ {[%clk 0:01:42]} 25. Kh1 {[%clk 0:00:26]}  Rd8 {[%clk 0:01:40]} 26. Be3 {[%clk 0:00:25]}  f5 {[%clk 0:01:39]} 27. Bxa7 {[%clk 0:00:21]}  Ra8 {[%clk 0:01:37]} 28. Bb6 {[%clk 0:00:15]}  Rxa2 {[%clk 0:01:32]} 29. Qb1 {[%clk 0:00:14]}  Qxb1 {[%clk 0:01:31]} 30. Rxb1 {[%clk 0:00:14]}  Nf4 {[%clk 0:01:31]} 31. Bd4 {[%clk 0:00:10]}  Nd3 {[%clk 0:01:31]} 32. c4 {[%clk 0:00:10]}  c5 {[%clk 0:01:27]} 33. Be3 {[%clk 0:00:09]}  f4 {[%clk 0:01:26]} 34. Bd2 {[%clk 0:00:07]}  Nxf2+ {[%clk 0:01:24]} 35. Kg1 {[%clk 0:00:08]}  Nd3 {[%clk 0:01:25]} 36. Bc3 {[%clk 0:00:08]}  Kf7 {[%clk 0:01:10]} 37. b4 {[%clk 0:00:03]}  cxb4 {[%clk 0:01:09]} 38. Bxb4 {[%clk 0:00:03]}  Nxb4 {[%clk 0:01:05]} 39. Rxb4 {[%clk 0:00:02]}  Ra7 {[%clk 0:01:05]} 40. c5 {[%clk 0:00:03]}  g5 {[%clk 0:01:05]} 41. Kf2 {[%clk 0:00:03]}  Ke6 {[%clk 0:01:03]} 42. Rb6+ {[%clk 0:00:03]}  Kf5 {[%clk 0:00:54]} 43. g3 {[%clk 0:00:01]}  Ra2+ {[%clk 0:00:54]} 44. Kf1 {[%clk 0:00:02]}  Rxh2 {[%clk 0:00:49]} 45. gxf4 {[%clk 0:00:02]}  g4 {[%clk 0:00:47]} 46. Rxb7 {[%clk 0:00:02]}  Kxf4 {[%clk 0:00:46]} 47. Rf7+ {[%clk 0:00:02]}  Kg3 {[%clk 0:00:46]} 48. c6 {[%clk 0:00:03]}  Rc2 {[%clk 0:00:46]} 49. c7 {[%clk 0:00:03]}  h5 {[%clk 0:00:47]} 50. Rg7 {[%clk 0:00:02]}  h4 {[%clk 0:00:47]} 51. Rd7 {[%clk 0:00:02]}  h3 {[%clk 0:00:46]} 52. Rd3+ {[%clk 0:00:02]}  Kh4 {[%clk 0:00:47]} 53. Rd2 {[%clk 0:00:02]}  Rxc7 {[%clk 0:00:45]} 0-1


[Site "https://www.chess.com"]

[Event "Titled Tuesday Blitz November 22 Early 2022"]
[White "Larina, Maria"]
[Black "Kuchava, Ana"]
[WhiteFideId "24113182"]
[BlackFideId "13605348"]
[WhiteElo "1848"]
[BlackElo "2001"]
[Result "0-1"]
[Round "07"]
[TimeControl "180+1"]
[Date "2022.11.23"]
[WhiteClock "0:00:03"]
[BlackClock "0:00:08"]

1. e4 {[%clk 0:03:00]}  c5 {[%clk 0:02:59]} 2. Nc3 {[%clk 0:03:00]}  Nc6 {[%clk 0:02:58]} 3. g3 {[%clk 0:02:59]}  g6 {[%clk 0:02:51]} 4. Bg2 {[%clk 0:02:59]}  Bg7 {[%clk 0:02:51]} 5. d3 {[%clk 0:02:58]}  e6 {[%clk 0:02:52]} 6. Be3 {[%clk 0:02:55]}  d6 {[%clk 0:02:52]} 7. Nge2 {[%clk 0:02:55]}  Nge7 {[%clk 0:02:50]} 8. Qd2 {[%clk 0:02:55]}  Nd4 {[%clk 0:02:50]} 9. O-O {[%clk 0:02:53]}  O-O {[%clk 0:02:49]} 10. Nd1 {[%clk 0:02:48]}  a6 {[%clk 0:02:49]} 11. c3 {[%clk 0:02:48]}  Nxe2+ {[%clk 0:02:44]} 12. Qxe2 {[%clk 0:02:49]}  b5 {[%clk 0:02:44]} 13. Qd2 {[%clk 0:02:41]}  Bb7 {[%clk 0:02:42]} 14. d4 {[%clk 0:02:39]}  cxd4 {[%clk 0:02:40]} 15. Bxd4 {[%clk 0:02:39]}  e5 {[%clk 0:02:36]} 16. Be3 {[%clk 0:02:38]}  f5 {[%clk 0:02:31]} 17. exf5 {[%clk 0:02:01]}  Bxg2 {[%clk 0:02:32]} 18. Kxg2 {[%clk 0:02:01]}  Nxf5 {[%clk 0:02:20]} 19. Bg5 {[%clk 0:01:58]}  Qb6 {[%clk 0:02:13]} 20. Qd5+ {[%clk 0:01:56]}  Kh8 {[%clk 0:02:12]} 21. Ne3 {[%clk 0:01:51]}  Nxe3+ {[%clk 0:02:09]} 22. Bxe3 {[%clk 0:01:50]}  Qc7 {[%clk 0:02:07]} 23. Rad1 {[%clk 0:01:48]}  Rad8 {[%clk 0:02:05]} 24. Bg5 {[%clk 0:01:47]}  Rd7 {[%clk 0:02:04]} 25. f4 {[%clk 0:01:31]}  h6 {[%clk 0:01:50]} 26. Bh4 {[%clk 0:01:00]}  Rf5 {[%clk 0:01:38]} 27. Qe6 {[%clk 0:00:53]}  Qc6+ {[%clk 0:01:25]} 28. Kh3 {[%clk 0:00:49]}  exf4 {[%clk 0:01:12]} 29. Qxg6 {[%clk 0:00:46]}  Rdf7 {[%clk 0:00:25]} 30. Rxd6 {[%clk 0:00:44]}  Qc4 {[%clk 0:00:17]} 31. Rd8+ {[%clk 0:00:42]}  Rf8 {[%clk 0:00:17]} 32. Rxf8+ {[%clk 0:00:28]}  Rxf8 {[%clk 0:00:18]} 33. Rf3 {[%clk 0:00:17]}  Qe2 {[%clk 0:00:17]} 34. Qg4 {[%clk 0:00:14]}  Qxb2 {[%clk 0:00:14]} 35. Rxf4 {[%clk 0:00:13]}  Rg8 {[%clk 0:00:12]} 36. Qe6 {[%clk 0:00:09]}  Qxc3 {[%clk 0:00:11]} 37. Rf7 {[%clk 0:00:08]}  Qc4 {[%clk 0:00:09]} 38. Qxc4 {[%clk 0:00:07]}  bxc4 {[%clk 0:00:09]} 39. Ra7 {[%clk 0:00:07]}  Rc8 {[%clk 0:00:08]} 40. Rxa6 {[%clk 0:00:03]}  c3 {[%clk 0:00:08]} 0-1


[Site "https://www.chess.com"]

[Event "Titled Tuesday Blitz November 22 Early 2022"]
[White "Levine, David"]
[Black "Mihailidis, Anastasios"]
[WhiteFideId "2011611"]
[BlackFideId "4205588"]
[WhiteElo "2194"]
[BlackElo "2312"]
[Result "0-1"]
[Round "07"]
[TimeControl "180+1"]
[Date "2022.11.23"]
[WhiteClock "0:01:24"]
[BlackClock "0:01:42"]

1. d4 {[%clk 0:03:00]}  d5 {[%clk 0:02:58]} 2. c4 {[%clk 0:03:00]}  e6 {[%clk 0:02:58]} 3. g3 {[%clk 0:03:01]}  Nf6 {[%clk 0:02:58]} 4. Bg2 {[%clk 0:03:01]}  Be7 {[%clk 0:02:58]} 5. Nf3 {[%clk 0:03:01]}  O-O {[%clk 0:02:58]} 6. O-O {[%clk 0:03:02]}  dxc4 {[%clk 0:02:59]} 7. Qc2 {[%clk 0:02:55]}  a6 {[%clk 0:02:58]} 8. a4 {[%clk 0:02:49]}  Bd7 {[%clk 0:02:58]} 9. Qxc4 {[%clk 0:02:48]}  b5 {[%clk 0:02:55]} 10. Qc2 {[%clk 0:02:47]}  bxa4 {[%clk 0:02:46]} 11. Nc3 {[%clk 0:02:46]}  Nd5 {[%clk 0:02:43]} 12. Nxa4 {[%clk 0:02:40]}  Bxa4 {[%clk 0:02:36]} 13. Qxa4 {[%clk 0:02:39]}  Qd7 {[%clk 0:02:36]} 14. Ne5 {[%clk 0:02:34]}  Qxa4 {[%clk 0:02:36]} 15. Rxa4 {[%clk 0:02:35]}  f6 {[%clk 0:02:33]} 16. Nd3 {[%clk 0:02:21]}  Nd7 {[%clk 0:02:27]} 17. Bd2 {[%clk 0:02:12]}  N7b6 {[%clk 0:02:23]} 18. Ra2 {[%clk 0:02:11]}  Nc4 {[%clk 0:02:18]} 19. Ba5 {[%clk 0:02:02]}  Rab8 {[%clk 0:02:13]} 20. Rc1 {[%clk 0:01:55]}  Nxa5 {[%clk 0:02:09]} 21. Rxa5 {[%clk 0:01:55]}  Nb4 {[%clk 0:01:55]} 22. Nxb4 {[%clk 0:01:49]}  Rxb4 {[%clk 0:01:56]} 23. Rxc7 {[%clk 0:01:45]}  Bd8 {[%clk 0:01:53]} 24. Rac5 {[%clk 0:01:31]}  Bxc7 {[%clk 0:01:53]} 25. Rxc7 {[%clk 0:01:30]}  Rxd4 {[%clk 0:01:53]} 26. Rc2 {[%clk 0:01:26]}  Rfd8 {[%clk 0:01:44]} 27. Bf3 {[%clk 0:01:25]}  Rd2 {[%clk 0:01:44]} 28. Rxd2 {[%clk 0:01:25]}  Rxd2 {[%clk 0:01:43]} 29. b3 {[%clk 0:01:25]}  Rb2 {[%clk 0:01:43]} 30. Bg4 {[%clk 0:01:24]}  Kf7 {[%clk 0:01:42]} 0-1


[Site "https://www.chess.com"]

[Event "Titled Tuesday Blitz November 22 Early 2022"]
[White "Li, Hui"]
[Black "Kiseljova, Marya"]
[WhiteFideId "15400310"]
[BlackFideId "4155009"]
[WhiteElo "1954"]
[BlackElo "1907"]
[Result "1/2-1/2"]
[Round "07"]
[TimeControl "180+1"]
[Date "2022.11.23"]
[WhiteClock "0:00:04"]
[BlackClock "0:00:08"]

1. e4 {[%clk 0:03:00]}  c5 {[%clk 0:02:57]} 2. Nf3 {[%clk 0:03:01]}  Nc6 {[%clk 0:02:57]} 3. d4 {[%clk 0:03:01]}  cxd4 {[%clk 0:02:58]} 4. Nxd4 {[%clk 0:03:02]}  g6 {[%clk 0:02:57]} 5. Nc3 {[%clk 0:03:02]}  Bg7 {[%clk 0:02:58]} 6. Be3 {[%clk 0:03:03]}  Nf6 {[%clk 0:02:57]} 7. Bc4 {[%clk 0:03:03]}  O-O {[%clk 0:02:56]} 8. Bb3 {[%clk 0:03:04]}  Re8 {[%clk 0:02:43]} 9. h4 {[%clk 0:03:03]}  h5 {[%clk 0:02:41]} 10. f3 {[%clk 0:02:54]}  e6 {[%clk 0:02:29]} 11. Nxc6 {[%clk 0:01:05]}  dxc6 {[%clk 0:02:24]} 12. Qxd8 {[%clk 0:01:05]}  Rxd8 {[%clk 0:02:25]} 13. a4 {[%clk 0:01:01]}  a5 {[%clk 0:02:15]} 14. Kf2 {[%clk 0:00:59]}  b6 {[%clk 0:02:13]} 15. Bxb6 {[%clk 0:00:58]}  Rd2+ {[%clk 0:02:10]} 16. Ke1 {[%clk 0:00:39]}  Rxg2 {[%clk 0:02:08]} 17. Bf2 {[%clk 0:00:37]}  Ba6 {[%clk 0:02:02]} 18. Rg1 {[%clk 0:00:30]}  Rxg1+ {[%clk 0:01:59]} 19. Bxg1 {[%clk 0:00:31]}  Rd8 {[%clk 0:01:57]} 20. Rd1 {[%clk 0:00:30]}  Rxd1+ {[%clk 0:01:56]} 21. Kxd1 {[%clk 0:00:30]}  Nd7 {[%clk 0:01:50]} 22. Be3 {[%clk 0:00:29]}  Bf6 {[%clk 0:01:40]} 23. Bf2 {[%clk 0:00:29]}  Bd8 {[%clk 0:01:35]} 24. Ne2 {[%clk 0:00:27]}  Ne5 {[%clk 0:01:35]} 25. f4 {[%clk 0:00:19]}  Ng4 {[%clk 0:01:34]} 26. Be1 {[%clk 0:00:15]}  Ne3+ {[%clk 0:01:29]} 27. Kd2 {[%clk 0:00:15]}  Ng4 {[%clk 0:01:21]} 28. Nd4 {[%clk 0:00:13]}  Bb7 {[%clk 0:01:14]} 29. Ke2 {[%clk 0:00:07]}  c5 {[%clk 0:01:13]} 30. Nf3 {[%clk 0:00:07]}  Bxe4 {[%clk 0:01:12]} 31. Ng5 {[%clk 0:00:04]}  Bd5 {[%clk 0:01:05]} 32. Bc3 {[%clk 0:00:03]}  Bxb3 {[%clk 0:01:03]} 33. cxb3 {[%clk 0:00:04]}  Bf6 {[%clk 0:01:01]} 34. Kd3 {[%clk 0:00:03]}  Kg7 {[%clk 0:00:55]} 35. Kc4 {[%clk 0:00:02]}  Nf2 {[%clk 0:00:51]} 36. Bxa5 {[%clk 0:00:02]}  Bxb2 {[%clk 0:00:49]} 37. Kxc5 {[%clk 0:00:01]}  Nd3+ {[%clk 0:00:49]} 38. Kb5 {[%clk 0:00:01]}  Nxf4 {[%clk 0:00:48]} 39. b4 {[%clk 0:00:02]}  f6 {[%clk 0:00:47]} 40. Ne4 {[%clk 0:00:02]}  Nd5 {[%clk 0:00:46]} 41. Nc5 {[%clk 0:00:02]}  Bc3 {[%clk 0:00:45]} 42. Nxe6+ {[%clk 0:00:02]}  Kf7 {[%clk 0:00:45]} 43. Nc5 {[%clk 0:00:02]}  g5 {[%clk 0:00:40]} 44. hxg5 {[%clk 0:00:02]}  fxg5 {[%clk 0:00:40]} 45. Kc4 {[%clk 0:00:03]}  h4 {[%clk 0:00:12]} 46. Kxd5 {[%clk 0:00:03]}  h3 {[%clk 0:00:13]} 47. Bc7 {[%clk 0:00:02]}  Bxb4 {[%clk 0:00:12]} 48. Ne4 {[%clk 0:00:02]}  g4 {[%clk 0:00:11]} 49. Ng3 {[%clk 0:00:02]}  Be1 {[%clk 0:00:11]} 50. Nh1 {[%clk 0:00:03]}  Ke8 {[%clk 0:00:09]} 51. a5 {[%clk 0:00:03]}  Kd7 {[%clk 0:00:08]} 52. Bg3 {[%clk 0:00:03]}  Bxa5 {[%clk 0:00:07]} 53. Ke4 {[%clk 0:00:03]}  Bc7 {[%clk 0:00:07]} 54. Bf2 {[%clk 0:00:02]}  g3 {[%clk 0:00:06]} 55. Bxg3 {[%clk 0:00:02]}  Bxg3 {[%clk 0:00:06]} 56. Nxg3 {[%clk 0:00:03]}  Ke6 {[%clk 0:00:07]} 57. Kf3 {[%clk 0:00:03]}  Kf6 {[%clk 0:00:07]} 58. Nh1 {[%clk 0:00:03]}  Kg5 {[%clk 0:00:08]} 59. Kg3 {[%clk 0:00:04]}  h2 {[%clk 0:00:08]} 60. Kg2 {[%clk 0:00:03]}  Kh4 {[%clk 0:00:08]} 61. Kxh2 {[%clk 0:00:04]} 1/2-1/2


[Site "https://www.chess.com"]

[Event "Titled Tuesday Blitz November 22 Early 2022"]
[White "Manon-og, Ramon Jr."]
[Black "Adithya A Chullikkad"]
[WhiteFideId "5200776"]
[BlackFideId "45078734"]
[WhiteElo "2312"]
[BlackElo "2106"]
[Result "1-0"]
[Round "07"]
[TimeControl "180+1"]
[Date "2022.11.23"]
[WhiteClock "0:00:04"]
[BlackClock "0:00:16"]

1. e4 {[%clk 0:02:56]}  c6 {[%clk 0:02:55]} 2. d4 {[%clk 0:02:55]}  d5 {[%clk 0:02:55]} 3. e5 {[%clk 0:02:56]}  e6 {[%clk 0:02:51]} 4. Nd2 {[%clk 0:02:56]}  c5 {[%clk 0:02:51]} 5. Ngf3 {[%clk 0:02:54]}  cxd4 {[%clk 0:02:51]} 6. Nxd4 {[%clk 0:02:54]}  Bc5 {[%clk 0:02:52]} 7. N2f3 {[%clk 0:02:53]}  Ne7 {[%clk 0:02:52]} 8. Bg5 {[%clk 0:02:48]}  Nbc6 {[%clk 0:02:52]} 9. c3 {[%clk 0:02:48]}  h6 {[%clk 0:02:50]} 10. Be3 {[%clk 0:02:47]}  Bb6 {[%clk 0:02:44]} 11. Bd3 {[%clk 0:02:43]}  Bd7 {[%clk 0:02:43]} 12. O-O {[%clk 0:02:43]}  a6 {[%clk 0:02:34]} 13. Rc1 {[%clk 0:02:36]}  Ba7 {[%clk 0:02:31]} 14. Bb1 {[%clk 0:02:23]}  Qc7 {[%clk 0:02:26]} 15. Bf4 {[%clk 0:02:19]}  g5 {[%clk 0:02:25]} 16. Bg3 {[%clk 0:02:18]}  g4 {[%clk 0:02:21]} 17. Nxc6 {[%clk 0:02:15]}  bxc6 {[%clk 0:02:20]} 18. Nh4 {[%clk 0:02:06]}  h5 {[%clk 0:02:16]} 19. c4 {[%clk 0:02:05]}  Rb8 {[%clk 0:01:51]} 20. cxd5 {[%clk 0:02:04]}  Nxd5 {[%clk 0:01:51]} 21. b3 {[%clk 0:02:02]}  Qa5 {[%clk 0:01:49]} 22. Qd3 {[%clk 0:01:21]}  Rb4 {[%clk 0:01:42]} 23. Rc4 {[%clk 0:01:17]}  Rb8 {[%clk 0:01:39]} 24. Rfc1 {[%clk 0:01:16]}  Qa3 {[%clk 0:01:36]} 25. Rd1 {[%clk 0:01:10]}  Qb2 {[%clk 0:01:35]} 26. Rc2 {[%clk 0:00:59]}  Qa3 {[%clk 0:01:34]} 27. Rdc1 {[%clk 0:00:51]}  Nb4 {[%clk 0:01:30]} 28. Qe2 {[%clk 0:00:42]}  Nxc2 {[%clk 0:01:29]} 29. Qxc2 {[%clk 0:00:42]}  Rb5 {[%clk 0:01:28]} 30. Rd1 {[%clk 0:00:39]}  Rc5 {[%clk 0:01:27]} 31. Qe2 {[%clk 0:00:34]}  Rd5 {[%clk 0:01:27]} 32. Rf1 {[%clk 0:00:33]}  c5 {[%clk 0:01:25]} 33. Qe3 {[%clk 0:00:25]}  Bb5 {[%clk 0:01:24]} 34. Re1 {[%clk 0:00:23]}  Bb6 {[%clk 0:01:21]} 35. Qg5 {[%clk 0:00:20]}  Qb4 {[%clk 0:01:12]} 36. Rc1 {[%clk 0:00:19]}  Qd2 {[%clk 0:01:09]} 37. Qxd2 {[%clk 0:00:19]}  Rxd2 {[%clk 0:01:10]} 38. h3 {[%clk 0:00:17]}  Ke7 {[%clk 0:01:02]} 39. Bf4 {[%clk 0:00:13]}  Rd4 {[%clk 0:00:58]} 40. Bg5+ {[%clk 0:00:13]}  Kd7 {[%clk 0:00:57]} 41. Be3 {[%clk 0:00:13]}  Rd5 {[%clk 0:00:48]} 42. Bf4 {[%clk 0:00:14]}  Rc8 {[%clk 0:00:44]} 43. hxg4 {[%clk 0:00:10]}  hxg4 {[%clk 0:00:43]} 44. g3 {[%clk 0:00:11]}  c4 {[%clk 0:00:41]} 45. bxc4 {[%clk 0:00:11]}  Rxc4 {[%clk 0:00:41]} 46. Re1 {[%clk 0:00:11]}  Rcd4 {[%clk 0:00:37]} 47. Bc2 {[%clk 0:00:10]}  Bd3 {[%clk 0:00:35]} 48. Bb3 {[%clk 0:00:10]}  Bc4 {[%clk 0:00:35]} 49. Ba4+ {[%clk 0:00:10]}  Bb5 {[%clk 0:00:35]} 50. Bb3 {[%clk 0:00:10]}  Rc5 {[%clk 0:00:33]} 51. Be3 {[%clk 0:00:09]}  Rcd5 {[%clk 0:00:27]} 52. Bxd5 {[%clk 0:00:08]}  exd5 {[%clk 0:00:23]} 53. Bxd4 {[%clk 0:00:08]}  Bxd4 {[%clk 0:00:24]} 54. Rd1 {[%clk 0:00:09]}  Bxe5 {[%clk 0:00:24]} 55. Rxd5+ {[%clk 0:00:09]}  Ke6 {[%clk 0:00:24]} 56. Rd1 {[%clk 0:00:07]}  Bc4 {[%clk 0:00:22]} 57. a3 {[%clk 0:00:06]}  Bd6 {[%clk 0:00:20]} 58. Rc1 {[%clk 0:00:04]}  Bb5 {[%clk 0:00:19]} 59. a4 {[%clk 0:00:02]}  Bxa4 {[%clk 0:00:18]} 60. Rc4 {[%clk 0:00:03]}  Bb5 {[%clk 0:00:18]} 61. Rxg4 {[%clk 0:00:03]}  a5 {[%clk 0:00:19]} 62. Nf3 {[%clk 0:00:03]}  Be2 {[%clk 0:00:18]} 63. Nd4+ {[%clk 0:00:03]}  Kd5 {[%clk 0:00:18]} 64. Nxe2 {[%clk 0:00:03]}  Bb4 {[%clk 0:00:16]} 65. Nc1 {[%clk 0:00:02]}  f5 {[%clk 0:00:16]} 66. Rf4 {[%clk 0:00:02]}  Ke5 {[%clk 0:00:16]} 67. Nd3+ {[%clk 0:00:01]}  Kd5 {[%clk 0:00:15]} 68. Nxb4+ {[%clk 0:00:02]}  axb4 {[%clk 0:00:16]} 69. Rxb4 {[%clk 0:00:03]}  Ke5 {[%clk 0:00:16]} 70. Rf4 {[%clk 0:00:04]}  Ke6 {[%clk 0:00:16]} 71. Kg2 {[%clk 0:00:04]} 1-0


[Site "https://www.chess.com"]

[Event "Titled Tuesday Blitz November 22 Early 2022"]
[White "Matinian, Nikita"]
[Black "Balabayeva, Xeniya"]
[WhiteFideId "24129100"]
[BlackFideId "13719688"]
[WhiteElo "2422"]
[BlackElo "2041"]
[Result "1-0"]
[Round "07"]
[TimeControl "180+1"]
[Date "2022.11.23"]
[WhiteClock "0:00:54"]
[BlackClock "0:00:01"]

1. e4 {[%clk 0:03:00]}  c6 {[%clk 0:02:57]} 2. d4 {[%clk 0:03:00]}  d5 {[%clk 0:02:57]} 3. e5 {[%clk 0:03:01]}  Bf5 {[%clk 0:02:55]} 4. Nf3 {[%clk 0:03:02]}  e6 {[%clk 0:02:54]} 5. Be2 {[%clk 0:03:02]}  Nd7 {[%clk 0:02:52]} 6. O-O {[%clk 0:03:02]}  h6 {[%clk 0:02:47]} 7. Nbd2 {[%clk 0:03:03]}  Bh7 {[%clk 0:02:42]} 8. Nb3 {[%clk 0:03:03]}  Ne7 {[%clk 0:02:27]} 9. a4 {[%clk 0:03:04]}  Nf5 {[%clk 0:02:07]} 10. a5 {[%clk 0:03:01]}  a6 {[%clk 0:01:56]} 11. c4 {[%clk 0:02:59]}  dxc4 {[%clk 0:01:47]} 12. Bxc4 {[%clk 0:03:00]}  Be7 {[%clk 0:01:47]} 13. Bd2 {[%clk 0:03:00]}  O-O {[%clk 0:01:45]} 14. Qe2 {[%clk 0:02:59]}  Qc7 {[%clk 0:01:41]} 15. Rac1 {[%clk 0:02:56]}  Rfe8 {[%clk 0:01:30]} 16. Bd3 {[%clk 0:02:51]}  Rad8 {[%clk 0:01:22]} 17. g4 {[%clk 0:02:50]}  Nh4 {[%clk 0:01:21]} 18. Bxh7+ {[%clk 0:02:49]}  Kxh7 {[%clk 0:01:22]} 19. Nxh4 {[%clk 0:02:49]}  Bxh4 {[%clk 0:01:23]} 20. f4 {[%clk 0:02:47]}  Be7 {[%clk 0:00:40]} 21. f5 {[%clk 0:02:44]}  f6 {[%clk 0:00:25]} 22. fxe6 {[%clk 0:02:43]}  Nf8 {[%clk 0:00:25]} 23. Qe4+ {[%clk 0:02:29]}  Kg8 {[%clk 0:00:24]} 24. Bxh6 {[%clk 0:02:16]}  Nxe6 {[%clk 0:00:17]} 25. Qg6 {[%clk 0:02:08]}  Bb4 {[%clk 0:00:13]} 26. exf6 {[%clk 0:02:04]}  Qf7 {[%clk 0:00:13]} 27. Qxf7+ {[%clk 0:01:58]}  Kxf7 {[%clk 0:00:13]} 28. fxg7+ {[%clk 0:01:56]}  Kg6 {[%clk 0:00:14]} 29. g5 {[%clk 0:01:35]}  Nxg5 {[%clk 0:00:12]} 30. Bxg5 {[%clk 0:01:35]}  Kxg5 {[%clk 0:00:13]} 31. Nc5 {[%clk 0:01:31]}  Bxc5 {[%clk 0:00:12]} 32. Rxc5+ {[%clk 0:01:24]}  Kg6 {[%clk 0:00:12]} 33. Rcf5 {[%clk 0:01:20]}  Kxg7 {[%clk 0:00:08]} 34. Rf7+ {[%clk 0:01:20]}  Kg6 {[%clk 0:00:09]} 35. Rxb7 {[%clk 0:01:21]}  Rxd4 {[%clk 0:00:09]} 36. Rb6 {[%clk 0:01:20]}  Re6 {[%clk 0:00:09]} 37. Rxa6 {[%clk 0:01:18]}  Rd2 {[%clk 0:00:08]} 38. Rf2 {[%clk 0:01:13]}  Rd4 {[%clk 0:00:06]} 39. Rb6 {[%clk 0:01:09]}  Kg5 {[%clk 0:00:06]} 40. Rb3 {[%clk 0:01:07]}  Ra4 {[%clk 0:00:04]} 41. Rg3+ {[%clk 0:01:06]}  Kh6 {[%clk 0:00:04]} 42. Rf8 {[%clk 0:01:03]}  Kh7 {[%clk 0:00:03]} 43. Rf5 {[%clk 0:01:03]}  Ra1+ {[%clk 0:00:01]} 44. Kg2 {[%clk 0:01:02]}  Ra4 {[%clk 0:00:01]} 45. Rh5+ {[%clk 0:00:53]}  Rh6 {[%clk 0:00:01]} 46. Rxh6+ {[%clk 0:00:54]}  Kxh6 {[%clk 0:00:01]} 47. Ra3 {[%clk 0:00:54]} 1-0


[Site "https://www.chess.com"]